Workbook

Sheet CAMPEONES (hidden)
A2: CAMPEONATO DE EQUIPOS
C3: EQUIPO | D3: CAPITAN | E3: PUNTAJE | F3: JINETES
A4: 1 | B4: CAMPEÓN NACIONAL | C4: CEPSA AMAROK | D4: FELIPE PORTILLA | E4: 1628.897 | F4: RIBADENEIRA SOFIA | G4: RIBADENEIRA ARTURO | H4: CANDO MARIO | I4: URIBE CARLOS JOSE | J4: PORTILLA FELIPE | K4: QUIROZ ORLANDO
A5: 2 | B5: VICECAMPEÓN NACIONAL | C5: EKOS NEGOCIOS.COM 1 | D5: MAURICIO MURILLO | E5: 1604.299 | F5: RICARDO DUEÑAS | G5: MORILLO MAURICIO | H5: RUIZ ILIANA | I5: SERGIO MORILLO | J5: BRAUER MARIA FERNANDA
A6: 3 | C6: EQUINOCCIAL 1 | D6: BERNARDO DARQUEA | E6: 1349.716 | F6: JUAN JOSE RECALDE | G6: RAFAELLA DARQUEA | H6: BERNARDO DARQUEA | I6: KARINA NEUMANN | J6: DELGADO JUAN | K6: ANDRES DARQUEA
A8: CAMPEONATO NACIONAL DE JINETES ABIERTA (CHASQUI II)
C9: EQUIPO | D9: PUNTAJE
A10: 1 | B10: CAMPEÓN NACIONAL | C10: MORILLO MAURICIO | D10: 779.3716
A11: 2 | B11: VICECAMPEÓN NACIONAL | C11: RECALDE JUAN JOSE | D11: 762.553
A12: 3 | C12: WEEMAELS NATHALIE | D12: 590.998
A14: CAMPEONATO NACIONAL DE JINETES MASTER (CHASQUI II)
C15: EQUIPO | D15: PUNTAJE
A16: 1 | B16: CAMPEÓN NACIONAL | C16: ALMEIDA AYALA HECTOR | D16: 159.52
A17: 2 | B17: VICECAMPEÓN NACIONAL
A18: 3
A20: CAMPEONATO NACIONAL DE JINETES JUVENIL (CHASQUI II)
C21: EQUIPO | D21: PUNTAJE
A22: 1 | B22: CAMPEÓN NACIONAL | C22: MORENO NICOLAS | D22: 496.92
A23: 2 | B23: VICECAMPEÓN NACIONAL | C23: RIBADENEIRA SOFIA | D23: 488.24
A24: 3 | C24: MONROY MARIA FERNANDA | D24: 318.386
A26: CAMPEONATO DE BINOMIOS
B27: JINETE | C27: CABALLO | D27: PUNTAJE
A28: 1 | B28: MORILLO MAURICIO | C28: MISTERIO | D28: 779.3716
A29: 2 | B29: RECALDE JUAN JOSE | C29: BOMBON | D29: 762.553
A30: 3 | B30: RIBADENEIRA SOFIA | C30: AR FAISAN | D30: 486.24
A32: MEJOR CONDICIÓN FISICA
B33: CABALLO | C33: PROPIETARIO | D33: PUNTAJE
A34: 1 | B34: MISTERIO | C34: MAURICIO MORILLO | D34: 529.736
A35: 2 | B35: BOMBON | C35: JUAN JOSE RECALDE | D35: 525.2725
A36: 3 | B36: AR FAISAN | C36: RIBADENEIRA SOFIA | D36: 415.66
A38: CAMPEONATO DE CABALLOS ABIERTA (PESO MÍNIMO 75 KG)
B39: CABALLO | C39: PROPIETARIO | D39: PUNTAJE
A40: 1 | B40: MISTERIO | C40: MORILLO MAURICIO | D40: 779.3716
A41: 2 | B41: BOMBON | C41: RECALDE JUAN JOSE | D41: 762.553
A42: 3 | B42: CG ALLASKI | C42: WEEMAELS NATHALIE | D42: 590.998
A44: CAMPEONATO DE CABALLOS JUVENIL- MASTER (SIN PESO MÍNIMO)
B45: CABALLO | C45: PROPIETARIO | D45: PUNTAJE
A46: 1 | B46: DAMASCO | C46: MORENO NICOLAS | D46: 413.14
A47: 2 | B47: AR FAISAN | C47: RIBADENEIRA SOFIA | D47: 321.96
A48: 3 | B48: GITANILLO | C48: MONROY BAROJA MARIA | D48: 295.548
A50: CAMPEONATO JINETES ABIERTA CHASQUI I
B51: JINETE | C51: PUNTAJE
A52: 1 | B52: ILIANA RUIZ | C52: 361.675
A53: 2 | B53: ORLANDO QUIROZ | C53: 332.0412
A54: 3 | B54: RICARDO DUEÑAS | C54: 323.7641
A56: CAMPEONATO JINETES MASTER CHASQUI I
B57: JINETE | C57: PUNTAJE
A58: 1 | B58: GUSTAVO HIDALGO | C58: 366.048
A59: 2 | B59: EDUARDO MONROY | C59: 124.138
A60: 3 | B60: GALO RECALDE | C60: 82.7526
A62: CAMPEONATO JINETES JUVENIL CHASQUI I
B63: JINETE | C63: PUNTAJE
A64: 1 | B64: PEDRO JOSE GUARDERAS | C64: 271.98
A65: 2 | B65: PEDRO JOSE BACA | C65: 124.138
A66: 3 | B66: WRAY THOMAS | C66: 119.96
A69: CAMPEONATO PRUEBA PROMOCIONAL JINETES
B70: JINETE | C70: PUNTAJE
A71: 1 | B71: BELEN GUARDERAS | C71: 92.714
A72: 2 | B72: ANDRES AYALA | C72: 90.88
A73: 3 | B73: MOLESTINA NICOLAS | C73: 88.868
A75: CAMPEONATO INFANTIL JINETES
B76: JINETE | C76: PUNTAJE
A77: 1 | B77: JARAMILLO BENITO JOSE | C77: 175.9786
A78: 2 | B78: CHIRIBOGA ALFREDO | C78: 175.375
A79: 3 | B79: JARAMILLO MANUELA | C79: 162.7443

Sheet CAMPEONES (hidden)
B2: CAMPEONATO ECUATORIANO DE ENDURANCE | G2: CAMPEONATO NACIONAL DE ENDURANCE ECUADOR
B4: CATEGORÍA ELITE ABIERTA CHASQUI 2 | G4: CAMPEONATO DE EQUIPOS
D5: JINETE | E5: CABALLO | I5: EQUIPO | J5: CAPITAN | K5: PUNTAJE | L5: JINETES
B6: 1 | C6: CAMPEÓN NACIONAL | G6: 1 | H6: CAMPEÓN NACIONAL
B7: 2 | C7: VICECAMPEÓN NACIONAL | G7: 2 | H7: VICECAMPEÓN NACIONAL
B8: 3 | G8: 3
B10: CATEGORÍA ELITE JUVENIL CHASQUI 2 | G10: CATEGORÍA ELITE ABIERTA
D11: JINETE | E11: CABALLO | I11: JINETE | J11: PUNTAJE
B12: 1 | C12: CAMPEÓN NACIONAL | G12: 1 | H12: CAMPEÓN NACIONAL
B13: 2 | C13: VICECAMPEÓN NACIONAL | G13: 2 | H13: VICECAMPEÓN NACIONAL
B14: 3 | G14: 3
G15: 4
G16: 5
B18: CATEGORÍA ELITE ABIERTA CHASQUI 1 | G18: CATEGORÍA ELITE JUVENIL
D19: JINETE | E19: CABALLO | I19: JINETE | J19: PUNTAJE
B20: 1 | C20: CAMPEÓN NACIONAL | G20: 1 | H20: CAMPEÓN NACIONAL
B21: 2 | C21: VICECAMPEÓN NACIONAL | G21: 2 | H21: VICECAMPEÓN NACIONAL
B22: 3 | G22: 3
G23: 4
G24: 5
B26: CATEGORÍA ELITE JUVENIL CHASQUI 1 | G26: CATEGORÍA ELITE CABALLOS
D27: JINETE | E27: CABALLO | I27: JINETE | J27: JINETE/DUEÑO | K27: PUNTAJE
B28: 1 | C28: CAMPEÓN NACIONAL | G28: 1 | H28: CAMPEÓN NACIONAL
B29: 2 | C29: VICECAMPEÓN NACIONAL | G29: 2 | H29: VICECAMPEÓN NACIONAL
B30: 3 | G30: 3
G31: 4
G32: 5
G34: CATEGORÍA NOVICIOS ABIERTA
I35: JINETE | J35: PUNTAJE
G36: 1 | H36: CAMPEÓN NACIONAL
G37: 2 | H37: VICECAMPEÓN NACIONAL
G38: 3
G39: 4
G40: 5
G42: CATEGORÍA NOVICIOS JUVENIL
I43: JINETE | J43: PUNTAJE
G44: 1 | H44: CAMPEÓN NACIONAL
G45: 2 | H45: VICECAMPEÓN NACIONAL
G46: 3
G47: 4
G48: 5
G50: CATEGORÍA NOVICIOS MENORES
I51: JINETE | J51: PUNTAJE
G52: 1 | H52: CAMPEÓN NACIONAL
G53: 2 | H53: VICECAMPEÓN NACIONAL
G54: 3
G55: 4
G56: 5
G58: CATEGORÍA NOVICIOS CABALLOS
I59: JINETE | J59: JINETE/DUEÑO | K59: PUNTAJE
G60: 1 | H60: CAMPEÓN NACIONAL
G61: 2 | H61: VICECAMPEÓN NACIONAL
G62: 3
G63: 4
G64: 5
G66: CATEGORÍA INFANTIL
I67: JINETE | J67: PUNTAJE
G68: 1 | H68: CAMPEÓN NACIONAL
G69: 2 | H69: VICECAMPEÓN NACIONAL
G70: 3
G71: 4
G72: 5
G74: CATEGORÍA BINOMIOS
I75: JINETE | J75: CABALLO | K75: PUNTAJE
G76: 1 | H76: CAMPEÓN NACIONAL
G77: 2 | H77: VICECAMPEÓN NACIONAL
G78: 3
G79: 4
G80: 5
G82: MEJOR CONDICIÓN ABIERTA
I83: CABALLO | J83: PUNTAJE
G84: 1 | H84: CAMPEÓN NACIONAL
G85: 2 | H85: VICECAMPEÓN NACIONAL
G86: 3
G87: 4
G88: 5
G90: MEJOR CONDICIÓN JUVENIL
I91: JINETE | J91: PUNTAJE
G92: 1 | H92: CAMPEÓN NACIONAL
G93: 2 | H93: VICECAMPEÓN NACIONAL
G94: 3
G95: 4
G96: 5
G98: SUPER CABALLO
I99: JINETE | J99: JINETE/DUEÑO | K99: PUNTAJE
G100: 1 | H100: CAMPEÓN NACIONAL
G101: 2 | H101: VICECAMPEÓN NACIONAL
G102: 3
G103: 4
G104: 5

Sheet EQUIPOS
B2: PUNTAJE ACUMULADO
B3: EQUIPOS
B5: EQUIPOS | K5: PUNTAJES
K6: 2012
C7: EQUIPO | D7: CAPITAN | E7: JINETES | K7: I CHONE | L7: II CHONE | M7: III CHONE | N7: IV CHONE | O7: V CHONE | P7: VI CHONE | Q7: VII CHONE | R7: VIII CHONE | S7: IX CHONE | T7: X CHONE | U7: ACUMULADO
B8: 1 | C8: EQUINOCCIAL 1 | D8: DARQUE BERNARDO | E8: DARQUE BERNARDO | F8: DARQUEA RICARDO | G8: NEUMANN KARINA | H8: GUARDERAS SEBASTIAN | I8: RECALDE JUAN JOSE | J8: SERRANO FELIPE | K8: 246.3877 | M8: 330.245 | N8: 513.924 | P8: 404.01 | S8: 655.63 | U8: =SUM(K8:T8) -> 2150.1967
B9: 2 | C9: AL GALOPE | D9: ALMEIDA AYALA HECTOR | E9: NATHALIE WEEMAELS | F9: ALMEIDA AYALA HECTOR | G9: TORRES WLADIMIRO | H9: ANDRADE JOSE DANIEL | I9: BERNARDA GONZÁLEZ | J9: MARÍA CLAUDIA LOYOLA | K9: 324.0344 | M9: 444.935 | N9: 548.2167 | P9: 337.479 | Q9: 467.4 | U9: 2122.0651
B10: 3 | C10: HOSTERIA SAN JOSE - CRIADERO UMBRIA | D10: LETORT MENA JOSE | E10: LETORT MENA JOSE | F10: LETORT JOSE IGNACIO | G10: JARAMILLO MANUELA | H10: JARAMILLO BENITO | I10: SERRANO ARMANDO JOSE | J10: JARAMILLO BENITO | K10: 396.6105 | M10: 444.935 | N10: 228.44864 | P10: 289.44 | S10: 346.99 | U10: 1706.42414 | AN10: =+$U$8-U9 -> 28.1316 | AO10: =VLOOKUP(B10,#REF!,3,FALSE) -> 
B11: 4 | C11: AL GALOPE 1 | D11: ALMEIDA AYALA HECTOR | E11: KOPPEL OSWALDO | F11: ACOSTA MARIA GABRIELA | G11: ALMEIDA HECTOR DANIEL | H11: ALEXANDER GÓMEZ | I11: MARÍA FERNANDA MONROY | J11: GONZALEZ SEBASTIAN | K11: 233.8918 | M11: 289.7275 | U11: 523.6193
B12: 5 | C12: Ekosnegocios.com | D12: MAURICIO MORILLO WELLENIUS | E12: MAURICIO MORILLO WELLENIUS | F12: RICARDO DUEÑAS | G12: MANUEL JOSE CORNEJO | H12: ANDRES BARAHONA | S12: 461.5206 | U12: 461.5206
B13: 6 | C13: CEPSA - AMAROK DE CACHAFAZ | D13: RIBADENEIRA ARTURO | E13: RIBADENEIRA ARTURO | F13: FRITZ PAULA | G13: FRITZ SEBASTIAN | U13: 0
B14: 7 | C14: EQUINOCCIAL 2 | D14: DARQUE BERNARDO | E14: MAZAPANTA KEVIN | F14: MIÑO JOSE RICARDO | G14: SANTIAGO GUARDERAS | U14: 0
B15: 8 | C15: CEPSA - AMAROK GUALILAGUA | D15: CARLOS URIBE S | E15: MARIO CANOD | F15: ESTEFANÍA CHANGO | G15: JULIANA FRITZ | U15: 0
B16: 9 | C16: Hato Verde | D16: MORABOWEN CESAR | E16: ALVEAR JUAN CARLOS | F16: SIMON NICOLAS | G16: FUEREZ LUIS | H16: MORABOWEN CESAR | U16: 0
B17: 10 | U17: =SUM(K17:T17) -> 0
B18: 11 | U18: 0
B19: 12 | U19: 0
B20: 13 | U20: 0
B21: 14 | U21: 0
B22: 15 | U22: 0
B23: 16 | U23: 0

Sheet ELITE ABIERTA
B2: PUNTAJE ACUMULADO
B3: CATEGORÍA ABIERTA DE ELITE
B5: ELITE ABIERTA | E5: PUNTAJES
E6: 2014
C7: CODIGO | D7: JINETE | E7: I CHONE | F7: II CHONE | G7: III CHONE | H7: IV CHONE | I7: V CHONE | J7: VI CHONE | K7: VII CHONE | L7: VIII CHONE | M7: IX CHONE | N7: X CHONE | O7: ACUMULADO
B8: 1 | C8: A059 | D8: ALMEIDA AYALA HECTOR | G8: 134.32 | J8: 152.76 | L8: 164 | M8: 207.2555 | O8: =SUM(E8:N8) -> 658.3355
B9: 2 | C9: A056 | D9: MORILLO MAURICIO | E9: 85.59 | G9: 167.9 | J9: 136.68 | M9: 231.6385 | O9: 621.8085
B10: 3 | C10: A052 | D10: DARQUEA BERNARDO | G10: 98.7 | H10: 245.108 | M10: 243.83 | O10: 587.638
B11: 4 | C11: A081 | D11: KOPPEL OSWALDO | H11: 168.01 | K11: 164 | M11: 219.447 | O11: 551.457
B12: 5 | C12: A060 | D12: RECALDE JUAN JOSE | E12: 81.31 | G12: 88.83 | J12: 114.57 | M12: 180.166 | O12: 464.876
B13: 6 | C13: A058 | D13: RIBADENEIRA ARTURO | H13: 232.8526 | J13: 144.72 | O13: 377.5726
B14: 7 | C14: A055 | D14: WEEMAELS NATHALIE | G14: 151.11 | H14: 220.5972 | O14: 371.7072
B15: 8 | C15: A026 | D15: LETORT MENA JOSE | E15: 167.7 | G15: 159.505 | O15: 327.205
B16: 9 | C16: A051 | D16: GUARDERAS SEBASTIAN | G16: 142.715 | J16: 128.64 | O16: 271.355
B17: 10 | C17: A177 | D17: RAMIREZ FABRICIO | J17: 108.54 | M17: 121.17 | O17: 229.71
B18: 11 | C18: A172 | D18: BURBANO SERRANO JAIME ROLANDO | E18: 94.8 | I18: 66.36 | O18: 161.16
B19: 12 | C19: A047 | D19: NEUMANN KARINA | J19: 160.8 | O19: 160.8
B20: 13 | C20: A092 | D20: VINTIMILLA PABLO | H20: 159.6095 | O20: 159.6095
B21: 14 | C21: A057 | D21: DAVILA JUAN DIEGO | G21: 125.925 | O21: 125.925
B22: 15 | C22: A033 | D22: SERRANO ARMANDO JOSE | J22: 120.6 | O22: 120.6
B23: 16 | C23: A046 | D23: NOBOA MAURICIO | H23: 119.894 | O23: 119.894
B24: 17 | C24: A067 | D24: CANDO MARIO | G24: 117.53 | O24: 117.53
B25: 18 | C25: A035 | D25: PORTILLA FELIPE | M25: 115.1115 | O25: 115.1115
B26: 19 | C26: A080 | D26: GOMEZ JUAN MARTIN | G26: 93.765 | O26: 93.765
B27: 20 | C27: A181 | D27: ALLAICO CHIMBORAZO JOSE EMILIO | L27: 84 | O27: 84
B28: 21 | O28: =SUM(E28:N28) -> 0
B29: 22 | O29: 0
B30: 23 | O30: 0
L32: =IF(J32>=60,"CLASIFICADO A 60 Km LIBRE y 80 Km NOVICIO",IF(J32>=40,"CLASIFICADO A 40 Km LIBRE y 60 Km NOVICIO","")) -> 
L50: =IF(J50>=60,"CLASIFICADO A 60 Km LIBRE y 80 Km NOVICIO",IF(J50>=40,"CLASIFICADO A 40 Km LIBRE y 60 Km NOVICIO","")) -> 

Sheet ELITE JUVENIL
B2: PUNTAJE ACUMULADO
B3: CATEGORÍA JUVENIL DE ELITE
B5: ELITE JUVENIL | E5: PUNTAJES
E6: 2014
C7: CODIGO | D7: JINETE | E7: I CHONE | F7: II CHONE | G7: III CHONE | H7: IV CHONE | I7: V CHONE | J7: VI CHONE | K7: VII CHONE | L7: VIII CHONE | M7: IX CHONE | N7: X CHONE | O7: ACUMULADO
B8: 1 | C8: J034 | D8: ANDRADE JOSE DANIEL | E8: 167.7 | F8: 171.6 | J8: 160.8 | K8: 164 | O8: =SUM(E8:N8) -> 664.1
B9: 2 | C9: J 063 | D9: GONZALEZ CARVALLO BERNARDA | F9: 163.02 | H9: 168.01 | K9: 155.8 | L9: 84 | O9: 570.83
B10: 3 | C10: J013 | D10: MORILLO SERGIO | E10: 81.31 | H10: 245.108 | M10: 243.83 | O10: 570.248
B11: 4 | C11: J055 | D11: LOYOLA CLAUDIA MARIA | G11: 159.505 | H11: 159.6095 | K11: 147.6 | O11: 466.7145
B12: 5 | C12: J047 | D12: LETORT JOSE IGNACIO | G12: 167.9 | M12: 162.1494 | O12: 330.0494
B13: 6 | C13: J087 | D13: MALO TORAL DAVID | H13: 142.8085 | M13: 180.166 | O13: 322.9745
B14: 7 | C14: J008 | D14: GOMEZ ALEXANDER | G14: 151.11 | H14: 134.408 | O14: 285.518
B15: 8 | C15: J020 | D15: SERRANO FELIPE | H15: 151.209 | M15: 231.6385 | O15: 382.8475
B16: 9 | C16: J021 | D16: CORNEJO MANUEL | M16: 171.1577 | O16: 171.1577
B17: 10 | O17: 0
B18: 11 | C18: J024 | D18: DARQUEA RAFAELLA | E18: 85.59 | O18: 85.59
B19: 12 | C19: J019 | D19: DARQUEA RICARDO | E19: 77.03 | O19: 77.03
B20: 13 | C20: J005 | D20: JIJON MARIA PAULA | E20: 72.75 | O20: 72.75
B21: 14 | O21: =SUM(E21:N21) -> 0
B22: 15 | O22: 0
B23: 16 | O23: 0
B24: 17 | O24: 0
B25: 18 | O25: 0
B26: 19 | O26: 0
L28: =IF(J28>=60,"CLASIFICADO A 60 Km LIBRE y 80 Km NOVICIO",IF(J28>=40,"CLASIFICADO A 40 Km LIBRE y 60 Km NOVICIO","")) -> 
L39: =IF(J39>=60,"CLASIFICADO A 60 Km LIBRE y 80 Km NOVICIO",IF(J39>=40,"CLASIFICADO A 40 Km LIBRE y 60 Km NOVICIO","")) -> 

Sheet ELITE CABALLOS
B2: PUNTAJE ACUMULADO
B3: CATEGORÍA CABALLOS DE ELITE
B5: ELITE CABALLOS | F5: PUNTAJES
F6: 2014
C7: CODIGO | D7: CABALLO | E7: DUEÑO/JINETE | F7: I CHONE | G7: II CHONE | H7: III CHONE | I7: IV CHONE | J7: V CHONE | K7: VI CHONE | L7: VII CHONE | M7: VIII CHONE | N7: IX CHONE | O7: X CHONE | P7: ACUMULADO
B8: 1 | C8: C136 | D8: FARHA CONEJA | E8: DARQUEA BERNARDO | F8: 85.59 | H8: 98.7 | I8: 245.108 | K8: 160.8 | N8: 243.83 | P8: =SUM(I8:O8) -> 649.738
B9: 2 | C9: C072 | D9: QUITA PENAS | E9: MORILLO SERGIO | F9: 81.31 | I9: 245.108 | N9: 243.83 | P9: =SUM(F9:O9) -> 570.248
B10: 3 | C10: C232 | D10: ASRAEL | E10: BERNARDO GONZÁLEZ | G10: 163.02 | I10: 168.01 | L10: 155.8 | P10: 486.83
B11: 4 | C11: C197 | D11: PATACON | E11: MARÍA CLAUDIA LOYOLA | H11: 159.505 | I11: 159.6095 | L11: 147.6 | P11: 466.7145
B12: 5 | C12: C041 | D12: ZUCO | E12: SERRANO FELIPE | I12: 151.209 | N12: 231.6385 | P12: 382.8475
B13: 6 | C13: C093 | D13: CG ALLASKI | E13: NATHALIE WEEMAELS | H13: 151.11 | I13: 220.5972 | P13: 371.7072
B14: 7 | C14: C114 | D14: KAFIR HA | E14: HÉCTOR ALMEIDA | H14: 151.11 | N14: 219.447 | P14: 370.557
B15: 8 | C15: C188 | D15: FRODO | E15: ARTURO RIBADENEIRA | H15: 125.925 | I15: 232.8526 | P15: 358.7776
B16: 9 | C16: C194 | D16: MD KABUL | E16: ANDRADE JOSE DANIEL | L16: 164 | N16: 180.166 | P16: 344.166
B17: 10 | C17: C097 | D17: CENTAURO | E17: HÉCTOR ALMEIDA | H17: 134.32 | N17: 207.2555 | P17: 341.5755
B18: 11 | C18: C154 | D18: SHAKIRA | E18: JOSE LETORT MENA | H18: 167.9 | N18: 162.1494 | P18: 330.0494
B19: 12 | C19: C134 | D19: JUPITER | E19: HÉCTOR ALMEIDA | L19: 164 | M19: 164 | P19: 328
B20: 13 | C20: C046 | D20: AMARETO | E20: JOSE LETORT MENA | F20: 167.7 | H20: 159.505 | P20: 327.205
B21: 14 | C21: C115 | D21: AVENTURERO | E21: HÉCTOR ALMEIDA | I21: 168.01 | K21: 152.76 | P21: 320.77
B22: 15 | C22: C094 | D22: MISTERIO | E22: MAURICIO MORILLO | F22: 85.59 | N22: 231.6385 | P22: 317.2285
B23: 16 | C23: C106 | D23: ZEUS LL | E23: MAURICIO MORILLO | H23: 167.9 | K23: 136.68 | P23: 304.58
B24: 17 | C24: C086 | D24: GHAFIL | E24: ROBERTO MARCEL | H24: 142.715 | K24: 128.64 | P24: 271.355
B25: 18 | C25: C350 | D25: BZ RHEEMAH | E25: FELIPE ANDRADE | G25: 171.6 | P25: 171.6
B26: 19 | C26: C189 | D26: HAAKIR | E26: CORNEJO MANUEL | N26: 171.1577 | P26: 171.1577
B27: 20 | C27: C193 | D27: SHIVAGO | E27: FELIPE ANDRADE | F27: 167.7 | P27: 167.7
B28: 21 | C28: C297 | D28: SAILER EG | E28: JAIME ROLANDO BURBANO SERRANO | G28: 94.8 | I28: 66.36 | P28: 161.16
B29: 22 | C29: C175 | D29: CLAW | E29: ANDRADE JOSE DANIEL | K29: 160.8 | P29: 160.8
B30: 23 | C30: C074 | D30: WISKY | E30: VINTIMILLA PABLO | I30: 159.6095 | P30: 159.6095
B31: 24 | C31: C096 | D31: AR FAISAN | E31: RIBADENEIRA ARTURO | K31: 144.72 | P31: 144.72
B32: 25 | C32: C208 | D32: ARAGON | E32: MALO TORAL DAVID | I32: 142.8085 | P32: 142.8085
B33: 26 | C33: C148 | D33: FUERTE | E33: GOMEZ ALEXANDER | I33: 134.408 | P33: 134.408
B34: 27 | C34: C332 | D34: MD SOHAT | E34: SERRANO ARMANDO JOSE | K34: 120.6 | P34: 120.6
B35: 28 | C35: C334 | D35: CAPORAL | E35: NOBOA MAURICIO | I35: 119.894 | P35: 119.894
B36: 29 | C36: C126 | D36: BRUMA | E36: MARIO CANDO | H36: 117.53 | P36: 117.53
B37: 30 | C37: C200 | D37: MULATA | E37: RECALDE JUAN JOSE | K37: 114.57 | P37: 114.57
B38: 31 | C38: C257 | D38: CHAGRA | E38: RAMIREZ FABRICIO | K38: 108.54 | P38: 108.54
B39: 32 | C39: C135 | D39: CARAGUAY | E39: JUAN MARTIN GOMEZ | H39: 93.765 | P39: 93.765
B40: 33 | C40: C200 | D40: MULATA | E40: JUAN JOSÉ RECALDE | H40: 88.83 | P40: 88.83
B41: 34 | C41: C004 | D41: TEQUILA | E41: ALLAICO CHIMBORAZO JOSE EMILIO | M41: 84 | P41: 84
B42: 35 | C42: C333 | D42: KADIN | E42: GONZALEZ BERNARDA | M42: 84 | P42: 84
B43: 36 | C43: C029 | D43: GR NURIA | E43: JUAN JOSÉ RECALDE | F43: 81.31 | P43: 81.31
B44: 37 | C44: C136 | D44: MILONGA | E44: RICARDO DARQUEA | F44: 77.03 | P44: 77.03
B45: 38 | C45: C072 | D45: FERMIN | E45: MARÍA PAULA JIJON | F45: 72.75 | P45: 72.75
B46: 39 | P46: =SUM(F46:O46) -> 0
B47: 40 | P47: 0
B48: 41 | P48: 0
B49: 42 | P49: 0
B50: 43 | P50: 0
B51: 44 | P51: 0
B52: 45 | P52: 0
B53: 46 | P53: 0
B54: 47 | P54: 0
B55: 48 | P55: 0
B56: 49 | P56: 0
B57: 50 | P57: 0
B58: 51 | P58: 0
B59: 52 | P59: 0
B60: 53 | P60: 0
M62: =IF(K62>=60,"CLASIFICADO A 60 Km LIBRE y 80 Km NOVICIO",IF(K62>=40,"CLASIFICADO A 40 Km LIBRE y 60 Km NOVICIO","")) -> 
M80: =IF(K80>=60,"CLASIFICADO A 60 Km LIBRE y 80 Km NOVICIO",IF(K80>=40,"CLASIFICADO A 40 Km LIBRE y 60 Km NOVICIO","")) -> 

Sheet NOVICIOS ABIERTA
B2: PUNTAJE ACUMULADO
B3: CATEGORÍA ABIERTA NOVICIOS
B5: NOVICIOS ABIERTA | E5: PUNTAJES
E6: 2014
C7: CODIGO | D7: JINETE | E7: I CHONE | F7: II CHONE | G7: III CHONE | H7: IV CHONE | I7: V CHONE | J7: VI CHONE | K7: VII CHONE | L7: VIII CHONE | M7: IX CHONE | N7: X CHONE | O7: ACUMULADO
B8: 1 | C8: A045 | D8: MORABOWEN CESAR | E8: 56.92 | G8: 53.928 | J8: 112.56 | K8: 114.8 | L8: 103.32 | M8: 119.81039 | O8: =SUM(J8:N8) -> 450.49039
B9: 2 | C9: A081 | D9: KOPPEL VINTIMILLA OSWALDO JAVIER | E9: 105.65 | F9: 120.12 | G9: 111.6535 | J9: 106.932 | O9: =SUM(E9:N9) -> 444.3555
B10: 3 | C10: A164 | D10: VELEZ MENA MARIA CONSUELO | F10: 88.48 | K10: 103.32 | L10: 109.06 | O10: 300.86
B11: 4 | C11: A014 | D11: MALO DIANA | K11: 58.8 | L11: 84 | M11: 126.1162 | O11: 268.9162
B12: 5 | C12: A033 | D12: SERRANO ARMANDO JOSE | E12: 50.93 | G12: 117.53 | H12: 50.92724 | O12: 219.38724
B13: 6 | C13: A093 | D13: GONZALEZ RENATO | I13: 108.108 | K13: 109.06 | O13: 217.168
B14: 7 | C14: A130 | D14: MALO JAIME | K14: 97.58 | L14: 114.8 | O14: 212.38
B15: 8 | C15: A142 | D15: GONZALEZ SEBASTIAN | E15: 99.78 | F15: 53.088 | H15: 53.92296 | O15: 206.79096
B16: 9 | C16: A 165 | D16: BURBANO VILLAVICENCIO JAIME SEBASTIAN | F16: 84.056 | H16: 111.72665 | O16: 195.78265
B17: 10 | C17: A010 | D17: HIDALGO GUSTAVO | E17: 53.92 | G17: 56.924 | H17: 56.91868 | O17: 167.76268
B18: 11 | C18: A169 | D18: SANCHEZ VEGA SANTIAGO | I18: 59.724 | K18: 52.92 | L18: 52.92 | O18: 165.564
B19: 12 | C19: A046 | D19: NOBOA MAURICIO | F19: 63.042 | G19: 44.94 | M19: 49.91574 | O19: 157.89774
B20: 13 | C20: A123 | D20: SAMPER ALVARO | H20: 59.9144 | J20: 47.838 | M20: 46.97952 | O20: 154.73192
B21: 14 | C21: A165 | D21: MORALES ANDRES | E21: 35.95 | H21: 35.94864 | J21: 56.28 | O21: 128.17864
B22: 15 | C22: A137 | D22: ESPINOZA ALVARADO JUAN SEBASTIAN | I22: 120.12 | O22: 120.12
B23: 16 | C23: A060 | D23: RECALDE JUAN JOSE | H23: 117.607 | O23: 117.607
B24: 17 | C24: A059 | D24: ALMEIDA AYALA HECTOR | E24: 117.39 | O24: 117.39
B25: 18 | C25: A158 | D25: WILLIAMS JEMMA | F25: 66.36 | G25: 50.932 | O25: 117.292
B26: 19 | C26: A092 | D26: VINTIMILLA SERRANO PABLO XAVIER | F26: 59.724 | L26: 55.86 | O26: 115.584
B27: 20 | C27: A 057 | D27: DAVILA JUAN DIEGO | F27: 114.114 | O27: 114.114
B28: 21 | C28: A078 | D28: CHANGO ESTEFANIA | E28: 111.52 | O28: 111.52
B29: 22 | C29: A135 | D29: DONOSO LOYOLA SEBASTIAN FERNANDO | L29: 49.98 | M29: 58.7244 | O29: 108.7044
B30: 23 | C30: A018 | D30: MANCHENO GALO PATRICIO | J30: 50.652 | M30: 52.85196 | O30: 103.50396
B31: 24 | C31: A021 | D31: ALVEAR JUAN CARLOS | F31: 56.406 | M31: 44.0433 | O31: 100.4493
B32: 25 | C32: A064 | D32: CASTILLO DIEGO | H32: 44.9358 | J32: 53.466 | O32: 98.4018
B33: 26 | C33: A048 | D33: BARAHONA VACA ANDRES | E33: 41.94 | G33: 47.936 | O33: 89.876
B34: 27 | C34: A145 | D34: MALO GELIBERT ANDREA | I34: 88.48 | O34: 88.48
B35: 28 | C35: A 162 | D35: TORRES JOSUE | F35: 79.632 | O35: 79.632
B36: 29 | C36: A181 | D36: ALLAICO CHIMBORAZO JOSE EMILIO | I36: 66.36 | O36: 66.36
B37: 30 | C37: A176 | D37: ESCOBAR LUIS | G37: 59.92 | O37: 59.92
B38: 31 | C38: A025 | D38: JARAMILLO BENITO | E38: 59.91 | O38: 59.91
B39: 32 | C39: A190 | D39: LOZADA ARMANDO | L39: 58.8 | O39: 58.8
B40: 33 | C40: A181 | D40: ALLAICO CHIMBORAZO JOSE EMILIO | K40: 55.86 | O40: 55.86
B41: 34 | C41: A026 | D41: LETORT MENA JOSE | M41: 55.78818 | O41: 55.78818
B42: 35 | C42: A173 | D42: REIVAN GORDILLO JHONZON VINICIO | F42: 49.77 | O42: 49.77
B43: 36 | C43: A058 | D43: RIBADENEIRA ARTURO | E43: 47.93 | O43: 47.93
B44: 37 | C44: A047 | D44: NEUMANN KARINA | E44: 44.94 | O44: 44.94
B45: 38 | C45: A178 | D45: ANDRADE JUAN CARLOS | G45: 41.944 | O45: 41.944
B46: 39 | C46: A185 | D46: BURBANO SERRANO JAIME ROLANDO | H46: 41.94008 | O46: 41.94008
B47: 40 | C47: A177 | D47: RAMIREZ FABRICIO | G47: 38.948 | O47: 38.948
B48: 41 | C48: A035 | D48: PORTILLA FELIPE | H48: 38.94436 | O48: 38.94436
B49: 42 | C49: A019 | D49: TORRES WLADIMIRO | E49: 38.94 | O49: 38.94
B50: 43 | C50: A024 | D50: RECALDE GALO | E50: 32.95 | O50: 32.95
B51: 44 | O51: =SUM(E51:N51) -> 0
B52: 45 | O52: 0
B53: 46 | O53: 0
B54: 47 | O54: 0
B55: 48 | O55: 0
B56: 49 | O56: 0
B57: 50 | O57: 0
B58: 51 | O58: 0
B59: 52 | O59: 0
B60: 53 | O60: 0
B61: 54 | O61: 0
B62: 55 | O62: 0
B63: 56 | O63: 0
B64: 57 | O64: 0
B65: 58 | O65: 0
B66: 59 | O66: 0
B67: 60 | O67: 0
B68: 61 | O68: 0
B69: 62 | O69: 0
B70: 63 | O70: 0
B71: 64 | O71: 0
B72: 65 | O72: 0
B73: 66 | O73: =SUM(E73:N73) -> 0
B74: 67 | O74: 0
L76: =IF(J76>=60,"CLASIFICADO A 60 Km LIBRE y 80 Km NOVICIO",IF(J76>=40,"CLASIFICADO A 40 Km LIBRE y 60 Km NOVICIO","")) -> 
L94: =IF(J94>=60,"CLASIFICADO A 60 Km LIBRE y 80 Km NOVICIO",IF(J94>=40,"CLASIFICADO A 40 Km LIBRE y 60 Km NOVICIO","")) -> 

Sheet NOVICIOS JUVENIL
B2: PUNTAJE ACUMULADO
B3: CATEGORÍA JUVENIL NOVICIOS
B5: NOVICIOS JUVENIL | E5: PUNTAJES
E6: 2014
C7: CODIGO | D7: JINETE | E7: I CHONE | F7: II CHONE | G7: III CHONE | H7: IV CHONE | I7: V CHONE | J7: VI CHONE | K7: VII CHONE | L7: VIII CHONE | M7: IX CHONE | N7: X CHONE | O7: ACUMULADO
B8: 1 | C8: J079 | D8: JARAMILLO MANUELA | E8: 111.52 | G8: 117.53 | H8: 117.607 | J8: 112.56 | M8: 126.1162 | O8: =SUM(G8:N8) -> 473.8132
B9: 2 | C9: J 054 | D9: VINTIMILLA CORDERO PABLO JOSE | F9: 66.36 | H9: 105.8463 | I9: 120.12 | O9: =SUM(E9:N9) -> 292.3263
B10: 3 | C10: J057 | D10: GUARDERAS JOSE GABRIEL | G10: 59.92 | H10: 56.91868 | M10: 113.50458 | O10: =SUM(E10:N10) -> 230.34326
B11: 4 | C11: J081 | D11: MEDINA CARVAJAL JORGE | E11: 53.92 | I11: 59.724 | J11: 53.466 | K11: 52.92 | L11: 47.04 | O11: =SUM(E11:K11) -> 220.03
B12: 5 | C12: J050 | D12: FRITZ PAULA | E12: 99.78 | G12: 105.777 | O12: =SUM(E12:N12) -> 205.557
B13: 6 | C13: J091 | D13: BERREZUETA DELGADO PABLO SANTI | K13: 58.8 | L13: 55.86 | M13: 58.7244 | O13: 173.3844
B14: 7 | C14: J 079 | D14: MALO TORAL DAVID | F14: 120.12 | K14: 49.98 | O14: 170.1
B15: 8 | C15: J088 | D15: RODITTI CARVAJAL CRISTORO | I15: 53.09 | J15: 56.28 | L15: 58.8 | O15: =SUM(E15:N15) -> 168.17
B16: 9 | C16: J090 | D16: LOYOLA VINTIMILLA TEODORO ANDRES | I16: 59.724 | K16: 44.1 | L16: 41.16 | O16: 144.984
B17: 10 | C17: J089 | D17: DARQUEA DAVALOS ANA MARIA | I17: 66.36 | K17: 55.86 | O17: 122.22
B18: 11 | C18: J019 | D18: DARQUEA RICARDO | M18: 119.81039 | O18: 119.81039
B19: 12 | C19: J059 | D19: DUBACH CAROLINA | H19: 59.9144 | M19: 55.78818 | O19: 115.70258
B20: 13 | C20: J 056 | D20: MATUTE RIOFRIO PEDRO FERMIN | F20: 114.114 | O20: 114.114
B21: 14 | C21: J007 | D21: ESPINOZA TOMAS | H21: 111.72665 | O21: 111.72665
B22: 15 | C22: J014 | D22: GUARDERAS PEDRO JOSE | G22: 111.6535 | O22: 111.6535
B23: 16 | C23: J021 | D23: CORNEJO MANUEL | E23: 105.65 | O23: 105.65
B24: 17 | C24: J088 | D24: SIMON NICOLAS | H24: 53.92296 | M24: 49.91574 | O24: 103.8387
B25: 18 | C25: J049 | D25: FRITZ SEBASTIAN | G25: 99.9005 | O25: 99.9005
B26: 19 | C26: J047 | D26: LETORT JOSE IGNACIO | E26: 93.912 | O26: 93.912
B27: 20 | C27: J043 | D27: MORENO DANIEL | E27: 93.91 | O27: 93.91
B28: 21 | C28: J093 | D28: LOPEZ EMILIA | K28: 47.04 | L28: 44.1 | O28: 91.14
B29: 22 | C29: A 164 | D29: VELEZ MENA MARIA CONSUELO | F29: 88.48 | O29: 88.48
B30: 23 | C30: J020 | D30: SERRANO FELIPE | E30: 88.04 | O30: 88.04
B31: 24 | C31: A 165 | D31: BURBANO VILLAVICENCIO JAIME SEBASTIAN | F31: 84.056 | O31: 84.056
B32: 25 | C32: J065 | D32: ESPINOSA BARBARA | E32: 82.17 | O32: 82.17
B33: 26 | C33: A 162 | D33: TORRES JOSUE | F33: 79.632 | O33: 79.632
B34: 27 | C34: J016 | D34: MIÑO JOSE RICARDO | E34: 59.91 | O34: 59.91
B35: 28 | C35: J051 | D35: POLIT JULIA | E35: 56.92 | O35: 56.92
B36: 29 | C36: J094 | D36: LOPEZ MIRANDA | L36: 52.92 | O36: 52.92
B37: 30 | C37: J094 | D37: JIJON ANA FRANCISCA | M37: 52.85196 | O37: 52.85196
B38: 31 | C38: J082 | D38: ANDRADE ANDRADE EMILIA | L38: 49.98 | O38: 49.98
B39: 32 | O39: =SUM(E39:N39) -> 0
B40: 33 | O40: 0
B41: 34 | O41: 0
B42: 35 | O42: 0
B43: 36 | O43: 0
B44: 37 | O44: 0
B45: 38 | O45: 0
B46: 39 | O46: 0
B47: 40 | O47: 0
B48: 41 | O48: 0
B49: 42 | O49: 0
B50: 43 | O50: 0
B51: 44 | O51: 0
B52: 45 | O52: 0
B53: 46 | O53: 0
B54: 47 | O54: 0
B55: 48 | O55: 0
B56: 49 | O56: 0
B57: 50 | O57: 0
B58: 51 | O58: 0
B59: 52 | O59: 0
B60: 53 | O60: 0
B61: 54 | O61: 0
B62: 55 | O62: 0
B63: 56 | O63: 0
L65: =IF(J65>=60,"CLASIFICADO A 60 Km LIBRE y 80 Km NOVICIO",IF(J65>=40,"CLASIFICADO A 40 Km LIBRE y 60 Km NOVICIO","")) -> 
L83: =IF(J83>=60,"CLASIFICADO A 60 Km LIBRE y 80 Km NOVICIO",IF(J83>=40,"CLASIFICADO A 40 Km LIBRE y 60 Km NOVICIO","")) -> 

Sheet NOVICIOS MENORES
B2: PUNTAJE ACUMULADO
B3: CATEGORÍA MENORES
B5: INFANTIL | E5: PUNTAJES
E6: 2014
C7: CODIGO | D7: JINETE | E7: I CHONE | F7: II CHONE | G7: III CHONE | H7: IV CHONE | I7: V CHONE | J7: VI CHONE | K7: VII CHONE | L7: VIII CHONE | M7: IX CHONE | N7: X CHONE | O7: ACUMULADO
B8: 1 | C8: M013 | D8: JARAMILLO BENITO | E8: 59.91 | H8: 59.9144 | J8: 56.28 | M8: 58.7244 | O8: =SUM(E8:N8) -> 234.8288
B9: 2 | C9: M012 | D9: MAZAPANTA KEVIN | G9: 59.92 | H9: 56.91868 | O9: =SUM(E9:N9) -> 116.83868
B10: 3 | C10: M010 | D10: FRITZ JULIANA | E10: 56.92 | O10: =SUM(E10:N10) -> 56.92
B11: 4 | C11: M027 | D11: VAZCONEZ CAMILA | M11: 55.78818 | O11: =SUM(E11:N11) -> 55.78818
B12: 5 | O12: 0
B13: 6 | O13: 0
B14: 7 | O14: 0
B15: 8 | O15: 0
B16: 9 | O16: 0
B17: 10 | O17: 0
B18: 11 | O18: 0
B19: 12 | O19: 0
B20: 13 | O20: 0
B21: 14 | O21: 0
B22: 15 | O22: 0
B23: 16 | O23: 0
B24: 17 | O24: 0
B25: 18 | O25: 0
B26: 19 | O26: 0
B27: 20 | O27: 0
B28: 21 | O28: 0
B29: 22 | O29: 0
B30: 23 | O30: 0
L32: =IF(J32>=60,"CLASIFICADO A 60 Km LIBRE y 80 Km NOVICIO",IF(J32>=40,"CLASIFICADO A 40 Km LIBRE y 60 Km NOVICIO","")) -> 
L50: =IF(J50>=60,"CLASIFICADO A 60 Km LIBRE y 80 Km NOVICIO",IF(J50>=40,"CLASIFICADO A 40 Km LIBRE y 60 Km NOVICIO","")) -> 

Sheet NOVICIOS CABALLOS
B2: PUNTAJE ACUMULADO
B3: CATEGORÍA CABALLOS NOVICIOS
B5: ELITE CABALLOS | F5: PUNTAJES
F6: 2014
C7: CODIGO | D7: CABALLO | E7: DUEÑO/JINETE | F7: I CHONE | G7: II CHONE | H7: III CHONE | I7: IV CHONE | J7: V CHONE | K7: VI CHONE | L7: VII CHONE | M7: VIII CHONE | N7: IX CHONE | O7: X CHONE | P7: ACUMULADO
B8: 1 | C8: C237 | D8: NICOLAS | E8: JARAMILLO MANUELA | F8: 111.52 | H8: 117.53 | I8: 117.607 | K8: 112.56 | N8: 126.1162 | P8: =+H8+I8+N8 -> 361.2532
B9: 2 | C9: C329 | D9: SERENATA CMB | E9: MORABOWEN CESAR | F9: 56.92 | H9: 53.928 | K9: 112.56 | L9: 114.8 | M9: 103.32 | N9: 119.81039 | P9: =+K9+L9+N9 -> 347.17039
B10: 3 | C10: C 202 | D10: PV RIGUEL | E10: VINTIMILLA CORDERO PABLO JOSE | G10: 53.4 | I10: 105.8463 | J10: 120.12 | P10: =SUM(F10:O10) -> 279.3663
B11: 4 | C11: C143 | D11: ALI | E11: MAZAPANTA KEVIN | H11: 59.92 | I11: 56.91868 | N11: 119.81039 | P11: 236.64907
B12: 5 | C12: C147 | D12: CAMARON | E12: GUARDERAS JOSE GABRIEL | H12: 59.92 | I12: 56.91868 | N12: 113.50458 | P12: 230.34326
B13: 6 | C13: C115 | D13: AVENTURERO | E13: ALMEIDA AYALA HECTOR | F13: 117.39 | H13: 111.6535 | P13: 229.0435
B14: 7 | C14: C210 | D14: CHUQUIRAGUA | E14: HIDALGO GUSTAVO | F14: 53.92 | H14: 56.924 | I14: 111.72665 | P14: 222.57065
B15: 8 | C15: C194 | D15: MD KABUL | E15: ANDRADE FELIPE | F15: 105.65 | G15: 114.114 | P15: 219.764
B16: 9 | C16: C365 | D16: SADIQ | E16: ALMEIDA AYALA HECTOR | I16: 111.72665 | K16: 106.932 | P16: 218.65865
B17: 10 | C17: C281 | D17: MK KAROK | E17: GONZALEZ RENATO | J17: 108.108 | L17: 109.06 | P17: 217.168
B18: 11 | C18: C174 | D18: ZT SATFFANTDU | E18: ARTURO RIBADENEIRA | H18: 99.9005 | I18: 59.9144 | N18: 55.78818 | P18: 215.60308
B19: 12 | C19: C175 | D19: CLAW | E19: ARTURO RIBADENEIRA | F19: 99.78 | H19: 105.777 | P19: 205.557
B20: 13 | C20: C341 | D20: TENGRI | E20: VELEZ MENA MARIA CONSUELO | G20: 88.48 | L20: 103.32 | P20: 191.8
B21: 14 | C21: C294 | D21: REMOLACHA | E21: MALO DIANA | L21: 58.8 | N21: 126.1162 | P21: 184.9162
B22: 15 | C22: C029 | D22: MILONGA | E22: JARAMILLO BENITO | I22: 59.9144 | K22: 56.28 | N22: 58.7244 | P22: 174.9188
B23: 17 | C23: C218 | D23: GALAN | E23: DARQUEA DAVALOS ANA MARIA | J23: 66.36 | L23: 55.86 | N23: 49.91574 | P23: 172.13574
B24: 18 | C24: C 337 | D24: CAPORAL | E24: NOBOA MAURICIO | G24: 53.8 | H24: 41.944 | J24: 53.088 | K24: 56.28 | L24: 49.98 | M24: 58.8 | N24: 55.78818 | P24: =G24+K24+M24 -> 168.88
B25: 19 | C25: C243 | D25: PAVITA | E25: MEDINA CARVAJAL JORGE | J25: 59.724 | L25: 52.92 | M25: 47.04 | P25: =SUM(F25:O25) -> 159.684
B26: 20 | C26: C200 | D26: MULATA | E26: RECALDE GALO | F26: 32.95 | I26: 117.607 | P26: 150.557
B27: 21 | C27: C367 | D27: SHAKIRA MD | E27: GONZALEZ SEBASTIAN | F27: 88.83 | I27: 53.92296 | P27: 142.75296
B28: 22 | C28: C229 | D28: BULERIA | E28: LOYOLA VINTIMILLA TEODORO ANDRES | J28: 46.452 | L28: 44.1 | M28: 41.16 | P28: 131.712
B29: 23 | C29: C324 | D29: RANCHERO | E29: MORALES ANDRES | F29: 35.95 | I29: 35.94864 | K29: 56.28 | P29: 128.17864
B30: 24 | C30: C134 | D30: JUPITER | E30: ALMEIDA AYALA HECTOR | G30: 120.12 | P30: 120.12
B31: 25 | C31: C278 | D31: JUGUETE | E31: ESPINOZA ALVARADO JUAN SEBASTIAN | J31: 120.12 | P31: 120.12
B32: 26 | C32: C208 | D32: ARAGON | E32: MALO TORAL DAVID | G32: 120.12 | P32: 120.12
B33: 27 | C33: C151 | D33: ILUSION | E33: SERRANO ARMANDO JOSE | H33: 117.53 | P33: 117.53
B34: 28 | C34: C154 | D34: SHAKIRA | E34: LETORT JOSE IGNACIO | F34: 117.39 | P34: 117.39
B35: 29 | C35: C130 | D35: ESPIRITU DEL ECUADOR | E35: BERREZUETA DELGADO PABLO SANTIAGO | M35: 55.86 | N35: 58.7244 | P35: 114.5844
B36: 31 | C36: C201 | D36: SHASHENKA | E36: MATUTE RIOFRIO PEDRO FERMIN | G36: 114.114 | P36: 114.114
B37: 32 | C37: C192 | D37: KALA | E37: SANCHEZ VEGA SANTIAGO | J37: 59.724 | L37: 52.92 | P37: 112.644
B38: 33 | C38: C124 | D38: BAILARINA | E38: GUARDERAS PEDRO JOSE | H38: 111.6535 | P38: 111.6535
B39: 34 | C39: C138 | D39: LOICA | E39: CHANGO ESTEFANIA | F39: 111.52 | P39: 111.52
B40: 35 | C40: C364 | D40: SHIMA | E40: SAMPER ALVARO | I40: 59.9144 | K40: 47.838 | P40: 107.7524
B41: 36 | C41: C202 | D41: RIGUEL | E41: VINTIMILLA PABLO JOSE | I41: 105.8463 | P41: 105.8463
B42: 37 | C42: C333 | D42: HAAKIR | E42: CORNEJO MANUEL | F42: 105.65 | P42: 105.65
B43: 38 | C43: C238 | D43: CALEÑA CMB | E43: SIMON NICOLAS | I43: 53.92296 | N43: 49.91574 | P43: 103.8387
B44: 39 | C44: C360 | D44: PSICOTICO | E44: MANCHENO GALO PATRICIO | K44: 50.652 | N44: 52.85196 | P44: 103.50396
B45: 40 | C45: C332 | D45: MD SOHAT | E45: SERRANO ARMANDO JOSE | F45: 50.93 | I45: 50.92724 | P45: 101.85724
B46: 41 | C46: C071 | D46: SARA WT | E46: KOPPEL OSWALDO | F46: 99.78 | P46: 99.78
B47: 42 | C47: C059 | D47: GS RASHID | E47: CASTILLO DIEGO | I47: 44.9358 | K47: 53.466 | P47: 98.4018
B48: 43 | C48: C234 | D48: EL PADRINO | E48: MALO JAIME | L48: 97.58 | P48: 97.58
B49: 44 | C49: C049 | D49: KALIFA | E49: MEDINA JORGE | K49: 53.466 | M49: 44.1 | P49: 97.566
B50: 45 | C50: C025 | D50: MORANTE | E50: MORENO DANIEL | F50: 93.91 | P50: 93.91
B51: 46 | C51: C261 | D51: GRINGO | E51: BARAHONA VACA ANDRES | F51: 41.94 | H51: 47.936 | P51: 89.876
B52: 47 | C52: C150 | D52: COCHIS | E52: MALO GELIBERT ANDREA | J52: 88.48 | P52: 88.48
B53: 48 | C53: C041 | D53: ZUCO | E53: SERRANO FELIPE | F53: 88.04 | P53: 88.04
B54: 49 | C54: C257 | D54: CHAGRA | E54: RAMIREZ FABRICIO | H54: 38.948 | I54: 47.93152 | P54: 86.87952
B55: 50 | C55: C286 | D55: NEGRO EG | E55: BURBANO VILLAVICENCIO JAIME SEBASTIAN | G55: 84.056 | P55: 84.056
B56: 51 | C56: C013 | D56: BAYO K BAYO | E56: ESPINOSA BARBARA | F56: 82.17 | P56: 82.17
B57: 52 | C57: C320 | D57: ESPARTACO | E57: TORRES JOSUE | G57: 79.632 | P57: =SUM(F57:O57) -> 79.632
B58: 53 | C58: C191 | D58: TEQUILA | E58: ALLAICO CHIMBORAZO JOSE EMILIO | J58: 66.36 | P58: 66.36
B59: 54 | C59: C325 | D59: PSYNCINATTI | E59: ESCOBAR LUIS | H59: 59.92 | P59: 59.92
B60: 55 | C60: C069 | D60: KAFIR | E60: MIÑO JOSE RICARDO | F60: 59.91 | P60: 59.91
B61: 56 | C61: C019 | D61: CHULPI | E61: JARAMILLO BENITO | F61: 59.91 | P61: 59.91
B62: 57 | C62: C233 | D62: BAUTRUS YUSUF | E62: JARAMILLO BENITO | F62: 59.91 | P62: 59.91
B63: 58 | C63: C283 | D63: MAGIC ONE | E63: DONOSO LOYOLA SEBASTIAN FERNAN | N63: 58.7244 | P63: 58.7244
B64: 59 | C64: C181 | D64: RAYUELA | E64: POLIT JULIA | F64: 56.92 | P64: 56.92
B65: 60 | C65: C163 | D65: LULY | E65: FRITZ JULIANA | F65: 56.92 | P65: 56.92
B66: 61 | C66: C162 | D66: COLORADO | E66: HIDALGO GUSTAVO | I66: 56.91868 | P66: 56.91868
B67: 62 | C67: C333 | D67: KADIN | E67: ALLAICO CHIMBORAZO JOSE EMILIO | L67: 55.86 | P67: 55.86
B68: 63 | C68: C388 | D68: CASTAÑUELA | E68: LETORT MENA JOSE | N68: 55.78818 | P68: 55.78818
B69: 64 | C69: C348 | D69: KA SAU | E69: WILLIAMS JEMMA | G69: 54.9 | P69: 54.9
B70: 65 | C70: C328 | D70: ZULA | E70: MEDINA JORGE | F70: 53.92 | P70: 53.92
B71: 66 | C71: C351 | D71: CARNIVAL RHYDER | E71: VINTIMILLA SERRANO PABLO XAVIER | G71: 53.45 | P71: 53.45
B72: 67 | C72: C352 | D72: TIBE | E72: ALVEAR JUAN CARLOS | G72: 53.4 | P72: 53.4
B73: 68 | C73: C353 | D73: TOCHI | E73: GONZALEZ SEBASTIAN | G73: 53.15 | P73: 53.15
B74: 69 | C74: C354 | D74: VIANCA | E74: REIVAN GORDILLO JHONZON VINICIO | G74: 53 | P74: 53
B75: 70 | C75: C242 | D75: DUBAI | E75: LOPEZ MIRANDA | M75: 52.92 | P75: 52.92
B76: 71 | C76: C153 | D76: TANGER | E76: JIJON ANA FRANCISCA | N76: 52.85196 | P76: 52.85196
B77: 72 | C77: C326 | D77: KA SAN | E77: WILLIAMS JEMMA | H77: 50.932 | P77: 50.932
B78: 73 | C78: C366 | D78: MAGO GH | E78: MORAN KEVIN GUILLERMO | I78: 50.92724 | P78: 50.92724
B79: 74 | C79: C344 | D79: GITANA | E79: ANDRADE ANDRADE EMILIA | M79: 49.98 | P79: 49.98
B80: 75 | C80: C163 | D80: AR SEGOVIA | E80: RIBADENEIRA ARTURO | F80: 47.93 | P80: 47.93
B81: 76 | C81: C055 | D81: TUMBA HOMBRES | E81: MALO TORAL DAVID | L81: 47.04 | P81: 47.04
B82: 77 | C82: C383 | D82: CHEQUE | E82: SAMPER ALVARO | N82: 46.97952 | P82: 46.97952
B83: 78 | C83: C113 | D83: CHIVIRIKA | E83: NEUMANN KARINA | F83: 44.94 | P83: 44.94
B84: 79 | C84: C331 | D84: LIA | E84: NOBOA MAURICIO | H84: 44.94 | P84: 44.94
B85: 80 | C85: C375 | D85: CAYETANA | E85: ALVEAR JUAN CARLOS | N85: 44.0433 | P85: 44.0433
B86: 81 | C86: C330 | D86: PIBE | E86: BURBANO SERRANO JAIME ROLANDO | I86: 41.94008 | P86: 41.94008
B87: 82 | C87: C204 | D87: AR ALBATSYN | E87: ARTURO RIBADENEIRA | I87: 38.94436 | P87: 38.94436
B88: 83 | C88: C039 | D88: PALOMA | E88: TORRES WLADIMIRO | F88: 38.94 | P88: 38.94
B89: 84 | P89: =SUM(F89:O89) -> 0
B90: 85 | P90: 0
B91: 86 | P91: 0
B92: 87 | P92: 0
B93: 88 | P93: 0
B94: 89 | P94: 0
B95: 90 | P95: 0
B96: 91 | P96: 0
B97: 92 | P97: 0
M99: =IF(K99>=60,"CLASIFICADO A 60 Km LIBRE y 80 Km NOVICIO",IF(K99>=40,"CLASIFICADO A 40 Km LIBRE y 60 Km NOVICIO","")) -> 
M117: =IF(K117>=60,"CLASIFICADO A 60 Km LIBRE y 80 Km NOVICIO",IF(K117>=40,"CLASIFICADO A 40 Km LIBRE y 60 Km NOVICIO","")) -> 

Sheet INFANTIL
B2: PUNTAJE ACUMULADO
B3: CATEGORÍA JUVENIL INFANTIL
B5: NOVICIOS MENORES | E5: PUNTAJES
E6: 2014
C7: CODIGO | D7: JINETE | E7: I CHONE | F7: II CHONE | G7: III CHONE | H7: IV CHONE | I7: V CHONE | J7: VI CHONE | K7: VII CHONE | L7: VIII CHONE | M7: IX CHONE | N7: X CHONE | O7: ACUMULADO
B8: 1 | C8: I009 | D8: JARAMILLO SAMUEL | E8: 29.96 | G8: 29.96 | H8: 29.9572 | I8: 28.14 | M8: 29.3622 | O8: =SUM(E8:N8) -> 147.3794
B9: 2 | C9: I034 | D9: SERRANO OLIVIA | F9: 26.733 | M9: 27.89409 | O9: 54.62709
B10: 3 | C10: I022 | D10: CORDOVA MATIAS | F10: 33.18 | O10: 33.18
B11: 4 | C11: I026 | D11: LOYOLA LANDIVAR JOSE EDUARDO | F11: 31.521 | O11: 31.521
B12: 5 | C12: I027 | D12: TORRES RAFAEL | F12: 29.862 | O12: 29.862
B13: 6 | C13: I028 | D13: INGAREVALO MALDONADO JUAN JOSE | F13: 28.203 | O13: 28.203
B14: 7 | C14: I034 | D14: DONOSO JULIAN | F14: 26.544 | O14: 26.544
B15: 8 | C15: I035 | D15: GONZALEZ CORDERO ANDREA CAROLINA | F15: 24.885 | O15: 24.885
B16: 9 | O16: =SUM(E16:N16) -> 0
B17: 10 | O17: 0
B18: 11 | O18: 0
B19: 12 | O19: 0
B20: 13 | O20: 0
B21: 14 | O21: 0
B22: 15 | O22: 0
B23: 16 | O23: 0
B24: 17 | O24: 0
B25: 18 | O25: 0
B26: 19 | O26: 0
B27: 20 | O27: 0
B28: 21 | O28: 0
B29: 22 | O29: 0
B30: 23 | O30: 0
L32: =IF(J32>=60,"CLASIFICADO A 60 Km LIBRE y 80 Km NOVICIO",IF(J32>=40,"CLASIFICADO A 40 Km LIBRE y 60 Km NOVICIO","")) -> 
L50: =IF(J50>=60,"CLASIFICADO A 60 Km LIBRE y 80 Km NOVICIO",IF(J50>=40,"CLASIFICADO A 40 Km LIBRE y 60 Km NOVICIO","")) -> 

Sheet BINOMIOS
B2: PUNTAJE ACUMULADO
B3: CATEGORÍA BINOMIOS
B5: BINOMIOS | G5: PUNTAJES
G6: 2014
C7: CODIGO | D7: JINETE | E7: CODIGO | F7: CABALLO | G7: I CHONE | H7: II CHONE | I7: III CHONE | J7: IV CHONE | K7: V CHONE | L7: VI CHONE | M7: VII CHONE | N7: VIII CHONE | O7: IX CHONE | P7: X CHONE | Q7: ACUMULADO
B8: 1 | C8: A052 | D8: DARQUEA BERNARDO | E8: C136 | F8: FARHA CONEJA | I8: 98.7 | J8: 245.108 | O8: 243.83 | Q8: =SUM(G8:P8) -> 587.638
B9: 2 | C9: J013 | D9: MORILLO SERGIO | E9: C072 | F9: QUITA PENAS | G9: 81.31 | J9: 245.108 | O9: 243.83 | Q9: =SUM(G9:P9) -> 570.248
B10: 3 | C10: J 063 | D10: GONZALEZ CARVALLO BERNARDA | E10: C 232 | F10: ASRAEL | H10: 163.02 | J10: 168.01 | M10: 155.8 | Q10: =SUM(G10:P10) -> 486.83
B11: 4 | C11: J079 | D11: JARAMILLO MANUELA | E11: C237 | F11: NICOLAS | G11: 111.52 | I11: 117.53 | J11: 117.607 | L11: 112.56 | O11: 126.1162 | Q11: =SUM(I11:P11) -> 473.8132
B12: 5 | C12: J020 | D12: SERRANO FELIPE | E12: C041 | F12: ZUCO | G12: 88.04 | J12: 151.209 | O12: 231.6385 | Q12: =SUM(G12:P12) -> 470.8875
B13: 6 | C13: J055 | D13: LOYOLA CLAUDIA MARIA | E13: C197 | F13: PATACON | I13: 159.505 | J13: 159.6095 | M13: 147.6 | Q13: =SUM(G13:P13) -> 466.7145
B14: 7 | C14: A045 | D14: MORABOWEN CESAR | E14: C329 | F14: SERENATA CMB | G14: 56.92 | I14: 53.928 | L14: 112.56 | M14: 114.8 | N14: 103.32 | O14: 119.81039 | Q14: =SUM(L14:P14) -> 450.49039
B15: 8 | C15: J047 | D15: LETORT JOSE IGNACIO | E15: C154 | F15: SHAKIRA | G15: 117.39 | I15: 167.9 | O15: 162.1494 | Q15: =SUM(G15:P15) -> 447.4394
B16: 9 | C16: A055 | D16: WEEMAELS NATHALIE | E16: C093 | F16: CG ALLASKI | I16: 151.11 | J16: 220.5972 | Q16: 371.7072
B17: 10 | C17: A059 | D17: ALMEIDA AYALA HECTOR | E17: C097 | F17: CENTAURO | I17: 134.32 | O17: 207.2555 | Q17: 341.5755
B18: 11 | C18: A026 | D18: LETORT MENA JOSE | E18: C046 | F18: AMARETO | G18: 167.7 | I18: 159.505 | Q18: 327.205
B19: 12 | C19: A060 | D19: RECALDE JUAN JOSE | E19: C200 | F19: MULATA | I19: 88.83 | J19: 117.607 | L19: 114.57 | Q19: 321.007
B20: 13 | C20: A056 | D20: MORILLO MAURICIO | E20: C094 | F20: MISTERIO | G20: 85.59 | O20: 231.6385 | Q20: 317.2285
B21: 14 | C21: A177 | D21: RAMIREZ FABRICIO | E21: C257 | F21: CHAGRA | I21: 38.948 | J21: 47.93152 | L21: 108.54 | O21: 121.17 | Q21: 316.58952
B22: 15 | C22: A056 | D22: MORILLO MAURICIO | E22: C106 | F22: ZEUS LL | I22: 167.9 | L22: 136.68 | Q22: 304.58
B23: 16 | C23: A171 | D23: VELEZ MENA MARIA CONSUELO | E23: C341 | F23: TENGRI | H23: 88.48 | M23: 103.32 | N23: 109.06 | Q23: 300.86
B24: 17 | C24: J 054 | D24: VINTIMILLA CORDERO PABLO JOSE | E24: C 202 | F24: PV RIGUEL | H24: 66.36 | J24: 105.85 | K24: 120.12 | Q24: 292.33
B25: 18 | C25: A 081 | D25: KOPPEL VINTIMILLA OSWALDO JAVIER | E25: C 134 | F25: JUPITER | H25: 120.12 | M25: 164 | Q25: 284.12
B26: 19 | C26: A081 | D26: KOPPEL OSWALDO | E26: C115 | F26: AVENTURERO | I26: 111.6535 | J26: 168.01 | Q26: 279.6635
B27: 20 | C27: J021 | D27: CORNEJO MANUEL | E27: C333 | F27: HAAKIR | G27: 105.65 | O27: 171.1577 | Q27: 276.8077
B28: 21 | C28: A051 | D28: GUARDERAS SEBASTIAN | E28: C086 | F28: GHAFIL | I28: 142.715 | L28: 128.64 | Q28: 271.355
B29: 22 | C29: A059 | D29: ALMEIDA AYALA HECTOR | E29: C115 | F29: AVENTURERO | G29: 117.39 | L29: 152.76 | Q29: 270.15
B30: 23 | C30: A014 | D30: MALO DIANA | E30: C294 | F30: REMOLACHA | M30: 58.8 | N30: 84 | O30: 126.1162 | Q30: 268.9162
B31: 24 | C31: J087 | D31: MALO TORAL DAVID | E31: C 208 | F31: ARAGON | H31: 120.12 | J31: 142.8085 | Q31: 262.9285
B32: 25 | C32: A058 | D32: RIBADENEIRA ARTURO | E32: C188 | F32: FRODO | J32: 232.8526 | Q32: 232.8526
B33: 26 | C33: J057 | D33: GUARDERAS JOSE GABRIEL | E33: C147 | F33: CAMARON | I33: 59.92 | J33: 56.91868 | O33: 113.50458 | Q33: 230.34326
B34: 27 | C34: A033 | D34: SERRANO ARMANDO JOSE | E34: C332 | F34: MD SOHAT | G34: 50.93 | J34: 50.92724 | L34: 120.6 | Q34: 222.45724
B35: 28 | C35: A081 | D35: KOPPEL OSWALDO | E35: C114 | F35: KAFIR HA | O35: 219.447 | Q35: 219.447
B36: 29 | C36: A140 | D36: GONZALEZ RENATO | E36: C281 | F36: MK KAROK | K36: 108.108 | M36: 109.06 | Q36: 217.168
B37: 30 | C37: A130 | D37: MALO JAIME | E37: C234 | F37: EL PADRINO | M37: 97.58 | N37: 114.8 | Q37: 212.38
B38: 31 | C38: J050 | D38: FRITZ PAULA | E38: C175 | F38: CLAW | G38: 99.78 | I38: 105.777 | Q38: 205.557
B39: 32 | C39: A046 | D39: NOBOA MAURICIO | E39: C 337 | F39: CAPORAL | H39: 63.042 | J39: 119.894 | Q39: 182.936
B40: 33 | C40: A060 | D40: RECALDE JUAN JOSE | E40: C098 | F40: BOMBON | O40: 180.166 | Q40: 180.166
B41: 34 | C41: J087 | D41: MALO TORAL DAVID | E41: C120 | F41: MD KABUL | O41: 180.166 | Q41: 180.166
B42: 35 | C42: M013 | D42: JARAMILLO BENITO | E42: C029 | F42: MILONGA | J42: 59.9144 | L42: 56.28 | O42: 58.7244 | Q42: 174.9188
B43: 36 | C43: J 034 | D43: ANDRADE PAREDES JOSE DANIEL | E43: C350 | F43: BZ RHEEMAH | H43: 171.6 | Q43: 171.6
B44: 37 | C44: J099 | D44: RODITTI CARVAJAL CRISTORO | E44: C337 | F44: CAPORAL | K44: 53.088 | L44: 56.28 | N44: 58.8 | Q44: 168.168
B45: 38 | C45: J034 | D45: ANDRADE JOSE DANIEL | E45: C193 | F45: SHIVAGO | G45: 167.7 | Q45: 167.7
B46: 39 | C46: A169 | D46: SANCHEZ VEGA SANTIAGO | E46: C192 | F46: KALA | K46: 59.724 | M46: 52.92 | N46: 52.92 | Q46: 165.564
B47: 40 | C47: J034 | D47: ANDRADE JOSE DANIEL | E47: C194 | F47: KABUL | M47: 164 | Q47: =SUM(G47:P47) -> 164
B48: 41 | C48: A059 | D48: ALMEIDA AYALA HECTOR | E48: C134 | F48: JUPITER | N48: 164 | Q48: 164
B49: 42 | C49: A172 | D49: BURBANO SERRANO JAIME ROLANDO | E49: C297 | F49: SAILER EG | H49: 94.8 | K49: 66.36 | Q49: 161.16
B50: 43 | C50: A047 | D50: NEUMANN KARINA | E50: C136 | F50: FARHA CONEJA | L50: 160.8 | Q50: 160.8
B51: 44 | C51: J034 | D51: ANDRADE JOSE DANIEL | E51: C175 | F51: CLAW | L51: 160.8 | Q51: 160.8
B52: 45 | C52: A092 | D52: VINTIMILLA PABLO | E52: C074 | F52: WISKY | J52: 159.6095 | Q52: 159.6095
B53: 46 | C53: A035 | D53: PORTILLA FELIPE | E53: C204 | F53: AR ALBATSYN | J53: 38.94436 | O53: 115.1115 | Q53: 154.05586
B54: 47 | C54: J008 | D54: GOMEZ ALEXANDER | E54: C114 | F54: KAFIR HA | I54: 151.11 | Q54: 151.11
B55: 48 | C55: A181 | D55: ALLAICO CHIMBORAZO JOSE EMILIO | F55: TEQUILA | K55: 66.36 | N55: 84 | Q55: 150.36
B56: 49 | C56: A058 | D56: RIBADENEIRA ARTURO | E56: C096 | F56: AR FAISAN | L56: 144.72 | Q56: 144.72
B57: 50 | C57: J008 | D57: GOMEZ ALEXANDER | E57: C148 | F57: FUERTE | J57: 134.408 | Q57: 134.408
B58: 51 | C58: J090 | D58: LOYOLA VINTIMILLA TEODORO ANDRES | E58: C229 | F58: BULERIA | K58: 46.452 | M58: 44.1 | N58: 41.16 | Q58: 131.712
B59: 52 | C59: A165 | D59: MORALES ANDRES | E59: C324 | F59: RANCHERO | G59: 35.95 | J59: 35.94864 | L59: 56.28 | Q59: 128.17864
B60: 53 | C60: J089 | D60: DARQUEA DAVALOS ANA MARIA | E60: C218 | F60: GALAN | K60: 66.36 | M60: 55.86 | Q60: 122.22
B61: 54 | C61: J019 | D61: DARQUEA RICARDO | E61: C143 | F61: ALI | O61: 119.81039 | Q61: 119.81039
B62: 55 | C62: A033 | D62: SERRANO ARMANDO JOSE | E62: C151 | F62: ILUSION | I62: 117.53 | Q62: 117.53
B63: 56 | C63: A158 | D63: WILLIAMS JEMMA | E63: C348 | F63: KA SAU | H63: 66.36 | I63: 50.932 | Q63: 117.292
B64: 57 | C64: M012 | D64: MAZAPANTA KEVIN | E64: C143 | F64: ALI | I64: 59.92 | J64: 56.91868 | Q64: 116.83868
B65: 58 | C65: A092 | D65: VINTIMILLA SERRANO PABLO XAVIER | E65: C351 | F65: CARNIVAL RHYDER | H65: 59.724 | N65: 55.86 | Q65: 115.584
B66: 59 | C66: J091 | D66: BERREZUETA DELGADO PABLO SANTI | E66: C130 | F66: ESPIRITU DEL ECUADOR | M66: 58.8 | N66: 55.86 | Q66: 114.66
B67: 60 | C67: J 056 | D67: MATUTE RIOFRIO PEDRO FERMIN | E67: C 201 | F67: SHASHENKA | H67: 114.114 | Q67: 114.114
B68: 61 | C68: A 057 | D68: DAVILA JUAN DIEGO | E68: C 194 | F68: KABUL | H68: 114.114 | Q68: 114.114
B69: 62 | C69: J081 | D69: MEDINA CARVAJAL JORGE | E69: C243 | F69: PAVITA | K69: 59.724 | M69: 52.92 | Q69: 112.644
B70: 63 | C70: J007 | D70: ESPINOZA TOMAS | E70: C210 | F70: CHUQUIRAGUA | J70: 111.72665 | Q70: 111.72665
B71: 64 | C71: A172 | D71: BURBANO VILLAVICENCIO JAIME SE | E71: C365 | F71: SADIQ | J71: 111.72665 | Q71: 111.72665
B72: 65 | C72: J014 | D72: GUARDERAS PEDRO JOSE | E72: C124 | F72: BAILARINA | I72: 111.6535 | Q72: 111.6535
B73: 66 | C73: A078 | D73: CHANGO ESTEFANIA | E73: C138 | F73: LOICA | G73: 111.52 | Q73: 111.52
B74: 67 | C74: A010 | D74: HIDALGO GUSTAVO | E74: C210 | F74: CHUQUIRAGUA | G74: 53.92 | I74: 56.924 | Q74: 110.844
B75: 68 | C75: A135 | D75: DONOSO LOYOLA SEBASTIAN FERNANDO | E75: C323 | F75: GH MAGIC ONE | N75: 49.98 | O75: 58.7244 | Q75: 108.7044
B76: 69 | C76: A123 | D76: SAMPER ALVARO | E76: C364 | F76: SHIMA | J76: 59.9144 | L76: 47.838 | Q76: 107.7524
B77: 70 | C77: A081 | D77: KOPPEL OSWALDO | E77: C365 | F77: SADIQ | L77: 106.932 | Q77: 106.932
B78: 71 | C78: A124 | D78: GONZALEZ SEBASTIAN | E78: C194 | F78: MD KABUL | G78: 105.65 | Q78: 105.65
B79: 72 | C79: J088 | D79: SIMON NICOLAS | E79: C238 | F79: CALEÑA CMB | J79: 53.92296 | O79: 49.91574 | Q79: =SUM(G79:P79) -> 103.8387
B80: 73 | C80: A018 | D80: MANCHENO GALO PATRICIO | E80: C360 | F80: PSICOTICO | L80: 50.652 | O80: 52.85196 | Q80: 103.50396
B81: 74 | C81: J049 | D81: FRITZ SEBASTIAN | E81: C174 | F81: ZT SATFFANTDU | I81: 99.9005 | Q81: 99.9005
B82: 75 | C82: A081 | D82: KOPPEL OSWALDO | E82: C071 | F82: SARA WT | G82: 99.78 | Q82: 99.78
B83: 76 | C83: A064 | D83: CASTILLO DIEGO | E83: C059 | F83: GS RASHID | J83: 44.9358 | L83: 53.466 | Q83: 98.4018
B84: 77 | C84: J043 | D84: MORENO DANIEL | E84: C025 | F84: MORANTE | G84: 93.91 | Q84: 93.91
B85: 78 | C85: A080 | D85: GOMEZ JUAN MARTIN | E85: C135 | F85: CARAGUAY | I85: 93.765 | Q85: 93.765
B86: 79 | C86: A048 | D86: BARAHONA VACA ANDRES | E86: C261 | F86: GRINGO | G86: 41.94 | I86: 47.936 | Q86: 89.876
B87: 80 | C87: A145 | D87: MALO GELIBERT ANDREA | E87: C150 | F87: COCHIS | K87: 88.48 | Q87: 88.48
B88: 81 | C88: J024 | D88: DARQUEA RAFAELLA | E88: C136 | F88: FARHA CONEJA | G88: 85.59 | Q88: 85.59
B89: 82 | C89: A172 | D89: BURBANO VILLAVICENCIO JAIME SEBASTIAN | E89: C284 | F89: NEGRO EG | H89: 84.056 | Q89: 84.056
B90: 83 | C90: J063 | D90: GONZALEZ BERNARDA | E90: C333 | F90: KADIN | N90: 84 | Q90: 84
B91: 84 | C91: J065 | D91: ESPINOSA BARBARA | E91: C013 | F91: BAYO K BAYO | G91: 82.17 | Q91: 82.17
B92: 85 | C92: A060 | D92: RECALDE JUAN JOSE | E92: C070 | F92: GR NURIA | G92: 81.31 | Q92: 81.31
B93: 86 | C93: A170 | D93: TORRES JOSUE | E93: C339 | F93: ESPARTACO | H93: 79.632 | Q93: 79.632
B94: 87 | C94: J019 | D94: DARQUEA RICARDO | E94: C029 | F94: MILONGA | G94: 77.03 | Q94: 77.03
B95: 88 | C95: J005 | D95: JIJON MARIA PAULA | E95: C036 | F95: FERMIN | G95: 72.75 | Q95: 72.75
B96: 89 | C96: A176 | D96: ESCOBAR LUIS | E96: C325 | F96: PSYNCINATTI | I96: 59.92 | Q96: 59.92
B97: 90 | C97: J059 | D97: DUBACH CAROLINA | E97: C174 | F97: ZT SATFFANTDU | J97: 59.9144 | Q97: 59.9144
B98: 91 | C98: J016 | D98: MIÑO JOSE RICARDO | E98: C069 | F98: KAFIR | G98: 59.91 | Q98: 59.91
B99: 92 | C99: A025 | D99: JARAMILLO BENITO | E99: C233 | F99: BAUTRUS YUSUF | G99: 59.91 | Q99: 59.91
B100: 93 | C100: M013 | D100: JARAMILLO BENITO | E100: C019 | F100: CHULPI | G100: 59.91 | Q100: 59.91
B101: 94 | C101: A190 | D101: LOZADA ARMANDO | E101: C252 | F101: BIANCA | N101: 58.8 | Q101: 58.8
B102: 95 | C102: J051 | D102: POLIT JULIA | E102: C181 | F102: RAYUELA | G102: 56.92 | Q102: 56.92
B103: 96 | C103: M010 | D103: FRITZ JULIANA | E103: C163 | F103: LULY | G103: 56.92 | Q103: 56.92
B104: 97 | C104: A010 | D104: HIDALGO GUSTAVO | E104: C162 | F104: COLORADO | J104: 56.91868 | Q104: 56.91868
B105: 98 | C105: A021 | D105: ALVEAR JUAN CARLOS | E105: C352 | F105: TIBE | H105: 56.406 | Q105: 56.406
B106: 99 | C106: A181 | D106: ALLAICO CHIMBORAZO JOSE EMILIO | E106: C333 | F106: KADIN | M106: 55.86 | Q106: 55.86
B107: 100 | C107: A026 | D107: LETORT MENA JOSE | E107: C388 | F107: CASTAÑUELA | O107: 55.78818 | Q107: 55.78818
B108: 101 | C108: M027 | D108: VAZCONEZ CAMILA | E108: C334 | F108: CAPORAL | O108: 55.78818 | Q108: 55.78818
B109: 102 | C109: A142 | D109: GONZALEZ SEBASTIAN | E109: C367 | F109: SHAKIRA MO | J109: 53.92296 | Q109: 53.92296
B110: 103 | C110: J081 | D110: MEDINA JORGE | E110: C328 | F110: ZULA | G110: 53.92 | Q110: 53.92
B111: 104 | C111: J081 | D111: MEDINA JORGE | E111: C049 | F111: KALIFA | L111: 53.466 | Q111: =SUM(G111:P111) -> 53.466
B112: 105 | C112: A142 | D112: GONZALEZ SEBASTIAN | E112: C353 | F112: TOCHI | H112: 53.088 | Q112: 53.088
B113: 106 | C113: J094 | D113: LOPEZ MIRANDA | E113: C242 | F113: DUBAI | N113: 52.92 | Q113: 52.92
B114: 107 | C114: A184 | D114: MORAN KEVIN GUILLERMO | E114: C366 | F114: MAGO GH | J114: 50.92724 | Q114: 50.92724
B115: 108 | C115: J093 | D115: LOPEZ EMILIA | E115: C337 | F115: CAPORAL | M115: 49.98 | Q115: 49.98
B116: 109 | C116: J082 | D116: ANDRADE ANDRADE EMILIA | E116: C344 | F116: GITANA | N116: 49.98 | Q116: 49.98
B117: 110 | C117: A046 | D117: NOBOA MAURICIO | E117: C384 | F117: GALAN | O117: 49.91574 | Q117: 49.91574
B118: 111 | C118: A173 | D118: REIVAN GORDILLO JHONZON VINICIO | E118: C354 | F118: VIANCA | H118: 49.77 | Q118: 49.77
B119: 112 | C119: A058 | D119: RIBADENEIRA ARTURO | E119: C163 | F119: AR SEGOVIA | G119: 47.93 | Q119: 47.93
B120: 113 | C120: J087 | D120: MALO TORAL DAVID | E120: C055 | F120: TUMBA HOMBRES | M120: 47.04 | Q120: 47.04
B121: 114 | C121: A123 | D121: SAMPER ALVARO | E121: C383 | F121: CHEQUE | O121: 46.97952 | Q121: 46.97952
B122: 115 | C122: A047 | D122: NEUMANN KARINA | E122: C113 | F122: CHIVIRIKA | G122: 44.94 | Q122: 44.94
B123: 116 | C123: A046 | D123: NOBOA MAURICIO | E123: C331 | F123: LIA | I123: 44.94 | Q123: 44.94
B124: 117 | C124: J093 | D124: LOPEZ EMILIA | E124: C240 | F124: KALIFA | N124: 44.1 | Q124: 44.1
B125: 118 | C125: A021 | D125: ALVEAR JUAN CARLOS | E125: C375 | F125: CAYETANA | O125: 44.0433 | Q125: 44.0433
B126: 119 | C126: A178 | D126: ANDRADE JUAN CARLOS | E126: C334 | F126: CAPORAL | I126: 41.944 | Q126: 41.944
B127: 120 | C127: A185 | D127: BURBANO SERRANO JAIME ROLANDO | E127: C330 | F127: PIBE | J127: 41.94008 | Q127: 41.94008
B128: 121 | C128: A019 | D128: TORRES WLADIMIRO | E128: C039 | F128: PALOMA | G128: 38.94 | Q128: 38.94
B129: 122 | C129: A024 | D129: RECALDE GALO | E129: C200 | F129: MULATA | G129: 32.95 | Q129: 32.95
B130: 123 | Q130: =SUM(G130:P130) -> 0
B131: 124 | Q131: 0
B132: 125 | Q132: 0
B133: 126 | Q133: 0
B134: 127 | Q134: 0
B135: 128 | Q135: 0
B136: 129 | Q136: 0
B137: 130 | Q137: 0
B138: 131 | Q138: 0
B139: 132 | Q139: 0
B140: 133 | Q140: 0
B141: 134 | Q141: 0
B142: 135 | Q142: 0
B143: 136 | Q143: 0
B144: 137 | Q144: 0
B145: 138 | Q145: 0
N147: =IF(L147>=60,"CLASIFICADO A 60 Km LIBRE y 80 Km NOVICIO",IF(L147>=40,"CLASIFICADO A 40 Km LIBRE y 60 Km NOVICIO","")) -> 
N165: =IF(L165>=60,"CLASIFICADO A 60 Km LIBRE y 80 Km NOVICIO",IF(L165>=40,"CLASIFICADO A 40 Km LIBRE y 60 Km NOVICIO","")) -> 
